Cogmind - Beta 14 @@@ ROGUE MODE // 2024.09.03 @ 00:57:21 Player: JohnnyDongs Result: Destroyed by X-77 Beamer with Gatling Laser Performance ------------- Evolutions (5) 2500 Regions Visited (20) 4000 Robots Destroyed (298) 1490 Value Destroyed (11638) 11638 Prototype IDs (62) 1240 Alien Tech Used (0) 0 Bonus (6654) 6654 TOTAL SCORE: 27522 Bonus ------- High Alert Combat Kills 465 Follower Combat Kills 685 Entered Garrisons 400 Entered DSFs 500 Aligned with FarCom 300 Acquired ECA 300 Met Warlord at Base 500 MAIN.C Attacked Warlord 500 Warlord Defense Kills 3344 Friendly Fire -340 Cogmind --------- Core Integrity 0/1000 Matter 200/300 Energy 62/100 System Corruption 13% Temperature Cool (45) Movement Core (1050) Ox20 Location -5/Warlord Parts ------- > --- POWER (2) -------- (None) > --- PROPULSION (4) --- (None) > --- UTILITY (8) ------ High-capacity Storage Unit Improved Signal Interpreter Makeshift Medium Armor Plating System Mapper > --- WEAPON (3) ------- Vortex Rifle Vortex Lance > --- INVENTORY (20) --- Compact Matter Pod (150) Compact Matter Pod (150) Encrypted Comm Array Experimental Core Analyzer Experimental Core Analyzer Variable Charge Gun Variable Charge Gun Vortex Rifle (35) Firepult Helical Railgun Improved Remote Datajack RU-N14's Throwing Claymores v3 (4) Vortex Lance (40) Peak State ------------ > --- POWER ------------ Vortex Chain Reactor > --- PROPULSION ------- Flexi-carbon Leg Enhanced Biometal Leg Enhanced Biometal Leg Enhanced Biometal Leg > --- UTILITY ---------- Improved Cooling System High-capacity Storage Unit Improved Signal Interpreter Experimental Targeting Computer Improved Power Shielding Hardened Heavy Armor Plating System Mapper > --- WEAPON ----------- Vortex Rifle Vortex Rifle Vortex Lance > --- INVENTORY -------- Antimatter Reactor Compact Matter Pod Compact Matter Pod Encrypted Comm Array Experimental Core Analyzer Experimental Core Analyzer Improved Transmission Jammer Makeshift Medium Armor Plating Variable Charge Gun Variable Charge Gun Firepult Helical Railgun Improved Remote Datajack RU-N14's Throwing Claymores v3 RU-N14's Throwing Claymores v3 RU-N14's Throwing Claymores v3 RU-N14's Throwing Claymores v3 RU-N14's Throwing Claymores v3 Vortex Lance [Rating: 126] Favorites ----------- Power Heavy Ion Engine Engine Heavy Ion Engine Power Core Enhanced Nuclear Core Reactor Vortex Chain Reactor Propulsion Armored Medium Treads Treads Armored Medium Treads Leg Enhanced Biometal Leg Wheel Armored Huge Wheel Hover Unit Improved Hover Unit Flight Unit Cooled Impulse Thruster Utility Hacking Suite Device Improved Cooling System Storage High-capacity Storage Unit Processor Experimental Targeting Computer Hackware Hacking Suite Protection Medium Armor Plating Weapon Heavy Assault Rifle Energy Gun Beam Rifle Energy Cannon Heavy Ion Cannon Ballistic Gun Heavy Assault Rifle Ballistic Cannon Antimatter Cannon Launcher Missile Launcher Special Weapon RU-N14's Throwing Claymores v3 Impact Weapon Heavy Mace Slashing Weapon Makeshift Axe Piercing Weapon Vortex Lance Special Melee Weapon Improved Datajack Build | -11 -10 -10 -9 -9 -9 -8 -8 -8 -8 -7 -7 -7 -6 -6 -6 -6 -5 -5 -5 -5 ------- Run | Yrd Mat Min Mat Min Exi Min Mat Gar Mat Fac Low Low Fac Gar Fac DSF Fac Upp Upp War Slots Evolved 10 | . . . 2 . . . 2 . . 2 . . 2 . . . 2 . . . Power 1 | . . . . . . . . . . . . . 1 . . . . . . . Propulsion 2 | . . . . . . . . . . 1 . . 1 . . . . . . . Utility 6 | . . . 1 . . . 2 . . 1 . . . . . . 2 . . . Weapon 1 | . . . 1 . . . . . . . . . . . . . . . . . Parts Attached 359 | 7 14 9 20 . 4 5 12 23 25 44 9 1 15 33 . 13 26 36 8 55 Power 31 | 1 1 1 . . . . 1 2 3 3 . . 1 . . . 4 4 1 9 Engine 14 | 1 1 1 . . . . 1 . . 2 . . 1 . . . 1 2 . 4 Core 15 | . . . . . . . . 2 3 1 . . . . . . 3 2 1 3 Reactor 2 | . . . . . . . . . . . . . . . . . . . . 2 Propulsion 67 | 2 6 2 3 . . . 1 2 5 7 1 . 3 6 . 4 4 8 5 8 Treads 31 | 2 4 2 3 . . . 1 2 . 2 1 . . . . 4 4 5 . 1 Leg 29 | . . . . . . . . . 5 4 . . 1 6 . . . 3 5 5 Wheel 3 | . . . . . . . . . . 1 . . 2 . . . . . . . Hover 3 | . 2 . . . . . . . . . . . . . . . . . . 1 Flight 1 | . . . . . . . . . . . . . . . . . . . . 1 Utility 118 | 2 1 . 8 . . . 5 4 10 23 5 . 6 12 . 6 10 12 1 13 Device 45 | 1 . . 1 . . . . 3 5 3 2 . 2 8 . 3 4 7 1 5 Storage 8 | 1 1 . 1 . . . . 1 . 1 . . . 1 . . 1 1 . . Processor 8 | . . . . . . . 2 . . 1 1 . . 1 . . . 2 . 1 Hackware 20 | . . . 1 . . . 2 . 1 14 . . 1 . . . . . . 1 Protection 37 | . . . 5 . . . 1 . 4 4 2 . 3 2 . 3 5 2 . 6 Artifact . | . . . . . . . . . . . . . . . . . . . . . Weapon 143 | 2 6 6 9 . 4 5 5 15 7 11 3 1 5 15 . 3 8 12 1 25 Energy Gun 23 | . 2 . . . 3 1 . 5 3 2 . . . . . . . . . 7 Energy Cannon 22 | . 2 2 1 . . . . 1 . 4 1 . 1 5 . . 1 4 . . Ballistic Gun 60 | 2 2 3 8 . . 3 4 4 4 5 1 1 2 6 . 3 6 3 . 3 Ballistic Cannon 6 | . . . . . . . . . . . . . 2 2 . . 1 . . 1 Launcher 4 | . . 1 . . . 1 . 2 . . . . . . . . . . . . Special Weapon 17 | . . . . . . . . 1 . . 1 . . 2 . . . 1 1 11 Impact Weapon 5 | . . . . . . . 1 2 . . . . . . . . . 2 . . Slashing Weapon 2 | . . . . . . . . . . . . . . . . . . 2 . . Piercing Weapon 3 | . . . . . . . . . . . . . . . . . . . . 3 Special Melee Weapon 1 | . . . . . 1 . . . . . . . . . . . . . . . Unidentified Prototypes 17 | . 1 . 1 . . . . . . 2 . . 1 1 . . 1 . . 10 Corrupted Parts 6 | . . . . . . . . . . . . . . . . . . 3 2 1 System Corruption 24 | . . . . . . . . . . . . . . . . . . 16 4 4 Parts Lost 78 | . . 6 . . . . 2 6 5 13 1 . 1 . . . 4 18 11 11 Power 14 | . . . . . . . . 2 1 2 . . . . . . 1 3 3 2 Propulsion 20 | . . 2 . . . . . 1 1 4 . . . . . . . 4 3 5 Utility 23 | . . 1 . . . . 1 1 . 3 1 . . . . . 2 7 3 4 Weapon 21 | . . 3 . . . . 1 2 3 4 . . 1 . . . 1 4 2 . Highest Loss Streak 16 | . . 5 . . . . 1 2 2 11 1 . 1 . . . 2 16 7 11 To Critical Strikes 3 | . . . . . . . . . . . . . . . . . . 2 1 . Average Slot Usage (%) 92 | . 99 86 99 100 100 100 96 99 98 86 87 84 82 97 100 98 97 75 81 87 Engine 4 | . 14 14 11 11 11 11 8 2 . . . . 6 6 6 6 . 3 4 3 Core 4 | . . . . . . . . 5 8 6 7 7 6 6 6 6 9 4 4 1 Treads 14 | . 27 27 22 22 22 22 18 17 5 5 7 7 . . . 21 23 20 1 . Leg 5 | . . . . . . . . . 12 4 . . . 25 26 3 . 1 21 22 Wheel 1 | . . . . . . . . . . 4 7 7 13 . . . . . . . Device 7 | . 14 1 3 . . . . 7 6 6 12 15 4 11 6 6 11 13 17 10 Storage 8 | . 14 14 11 11 11 11 9 9 9 7 7 7 6 5 6 6 5 5 5 5 Processor 3 | . . . . . . . . 9 5 . 1 . . 1 6 6 5 3 11 14 Hackware 12 | . . . 10 11 11 11 24 18 21 20 15 15 18 15 13 13 11 2 . 2 Protection 4 | . . . 7 11 11 11 8 . 2 5 3 . 5 3 6 5 7 2 . 5 Energy Gun 3 | . 2 . . . . 9 . 11 17 1 . . . . . . . . . 7 Energy Cannon 4 | . 11 23 . . . . . . . 10 14 15 12 8 . . . 2 4 . Ballistic Gun 12 | . 13 4 32 33 23 20 24 14 9 8 4 3 5 6 20 19 13 4 . . Peak Build Rating 126 | 7 15 15 21 21 24 26 30 47 42 55 55 51 67 81 75 81 105 106 79 126 Average Rating 50 | 5 11 13 19 21 23 24 28 32 35 47 51 51 62 69 75 77 97 71 72 97 On Entrance 43 | . 7 15 14 21 21 23 24 30 32 39 51 51 51 67 75 75 81 104 79 53 Naked Turns . | . . . . . . . . . . . . . . . . . . . . . Heaviest Build 129 | 13 37 37 64 64 64 67 67 64 64 73 76 69 93 93 76 82 99 97 94 129 Greatest Support 110 | 40 46 46 46 43 43 43 43 43 40 50 28 28 56 92 92 108 108 109 102 110 Greatest Overweight (x) 5 | . 5 . 1 1 1 1 1 2 3 3 3 2 3 1 . 1 . 1 1 2 Average Overweight (x) . | . . . . 1 1 1 1 1 1 1 2 2 1 . . . . . . . Largest Inventory Capacity 20 | 8 15 15 20 20 20 20 20 20 20 20 20 20 20 20 20 20 20 20 20 20 Average Capacity 18 | 7 9 15 16 20 20 20 20 20 20 20 20 20 20 19 20 20 20 20 20 20 Most Carried 20 | 8 15 15 16 16 18 19 20 20 20 20 20 17 20 20 20 20 20 20 18 20 Average Carried 16 | 4 8 11 15 16 17 18 18 16 19 16 16 17 17 19 20 19 19 17 16 18 Final Capacity 20 | 8 15 15 20 20 20 20 20 20 20 20 20 20 20 20 20 20 20 20 20 20 Final Carried 20 | 8 15 14 16 16 18 19 18 20 20 11 17 17 20 20 20 20 20 18 17 14 Class Distribution -------------------- 35% | Hacker-Skirmisher 14% | Mutant 7% | Scavenger-Skirmisher 7% | Scavenger-Tank 7% | Tank 5% | Scavenger-Mutant 4% | Commander-Skirmisher 4% | Hacker-Gunner Dominant Class ---------------- Mutant | -10/Materials Mutant | -10/Mines Tank | -9/Materials Tank | -9/Mines Mutant | -9/Exiles Skirmisher | -8/Mines Hacker-Skirmisher | -8/Materials Hacker-Skirmisher | -8/Garrison Hacker-Skirmisher | -8/Materials Hacker-Skirmisher | -7/Factory Hacker-Gunner | -7/Lower Caves Hacker-Gunner | -7/Lower Caves Hacker-Skirmisher | -6/Factory Hacker-Skirmisher | -6/Garrison Scavenger-Skirmisher | -6/Factory Hacker-Skirmisher | -6/DSF Scavenger-Tank | -5/Factory Scavenger-Mutant | -5/Upper Caves Scavenger-Mutant | -5/Upper Caves Scavenger-Gunner | -5/Warlord Resources | -11 -10 -10 -9 -9 -9 -8 -8 -8 -8 -7 -7 -7 -6 -6 -6 -6 -5 -5 -5 -5 ----------- Run | Yrd Mat Min Mat Min Exi Min Mat Gar Mat Fac Low Low Fac Gar Fac DSF Fac Upp Upp War Matter Collected 9264 | 282 294 211 980 13 . 253 670 595 519 851 227 10 155 504 . 330 1928 716 124 602 Remotely 238 | . . . . . . . . . . . . . . . . . 238 . . . Salvage Created 11673 | 99 597 146 1079 . . 288 980 883 1307 1245 632 . 216 735 . 81 1560 1401 207 217 Parts 586 | 5 35 9 85 . . 14 57 44 72 64 29 . 8 16 . 8 88 40 8 4 Haulers Intercepted 7 | . . . 2 . . . 2 . 2 . . . . . . . 1 . . . Recyclers Shooed 8 | . 1 . . . . . 4 . 1 1 . . . . . . 1 . . . Parts Field Recycled . | . . . . . . . . . . . . . . . . . . . . . Retrieved Matter . | . . . . . . . . . . . . . . . . . . . . . Parts Self-Destructed 51 | . . . . . . . . . . . 13 7 . . . . . 28 3 . Prevented 7 | . . . . . . . . . . . . . . . . . . 5 2 . Kills | -11 -10 -10 -9 -9 -9 -8 -8 -8 -8 -7 -7 -7 -6 -6 -6 -6 -5 -5 -5 -5 ------- Run | Yrd Mat Min Mat Min Exi Min Mat Gar Mat Fac Low Low Fac Gar Fac DSF Fac Upp Upp War Combat Hostiles Destroyed 238 | . 6 18 21 . . 3 15 26 22 17 13 . 3 17 . 3 25 20 4 25 Melee 5 | . . . . . . . . . . . . . . . . . . 2 1 2 Guns 126 | . 4 2 21 . . 3 15 13 20 9 4 . 1 . . 3 24 7 . . Cannons 36 | . 2 5 . . . . . . . 8 9 . 2 3 . . 1 3 3 . AOE 56 | . . 10 . . . . . 13 . . . . . 9 . . . 1 . 23 Classes Destroyed 21 | 2 4 3 3 . . . 1 . 2 1 2 . . 1 . . . . . 2 Worker 15 | . 1 . . . . . 1 . 4 4 . . . . . . 5 . . . Builder 8 | . . . 2 . . . . . . 2 . . . . . . 4 . . . Tunneler 9 | 1 . 1 3 . . 2 . . . . . . . . . . 2 . . . Hauler 7 | . . . 2 . . . 2 . 2 . . . . . . . 1 . . . Recycler 14 | 1 3 . 1 . . 1 2 . 1 4 . . . . . . 1 . . . Operator 4 | . 1 . 2 . . . . . 1 . . . . . . . . . . . Watcher 12 | . 3 . 2 . . . 2 . 2 . . . 1 . . . 2 . . . Swarmer 49 | . . 7 7 . . . 3 8 3 . 4 . . 8 . 3 . 5 1 . Grunt 96 | . 6 . 10 . . 3 8 17 12 3 2 . 2 6 . . 12 7 1 7 Brawler 10 | . . . . . . . 3 . . . . . . 1 . . . 2 . 4 Duelist 7 | . . . . . . . . . . . 1 . . . . . . 4 . 2 Protector 2 | . . . . . . . . . . . . . . . . . . . . 2 Sentry 19 | . . . 4 . . . 1 1 4 6 . . 1 . . . 1 1 . . Demolisher 2 | . . 1 . . . . . . . 1 . . . . . . . . . . Specialist 2 | . . . . . . . . . 2 . . . . . . . . . . . Hunter 13 | . . . . . . . . . 1 3 . . . . . . 6 1 2 . Programmer 18 | . . . . . . . . . . 4 . . . 1 . . 6 . . 7 Behemoth 3 | . . . . . . . . . . . . . . 1 . . . 1 . 1 Striker 2 | . . . . . . . . . . . . . . . . . . . . 2 Assembled 10 | . . 10 . . . . . . . . . . . . . . . . . . Thug 5 | . . . . . . . . . . . 5 . . . . . . . . . Mutant 1 | . . . . . . . . . . . 1 . . . . . . . . . Best Kill Streak 18 | 2 4 10 7 . . 3 7 4 6 5 4 . 2 9 . 3 7 6 2 18 Combat Bots Only 18 | . 2 10 4 . . 2 6 4 3 3 4 . 2 9 . 3 3 6 2 18 Max Kills in Single Turn 6 | 1 1 3 2 . . 1 3 4 2 2 2 . 1 4 . 1 3 2 1 6 Gunslinging 1 | . . . . . . . 1 . . . . . . . . . . . . . Exploded 6 | . . 3 . . . . . 4 . . . . . 3 . . . 1 . 6 Melee 1 | . . . . . . . . . . . . . . . . . . 1 1 1 Uniques/NPCs Destroyed . | . . . . . . . . . . . . . . . . . . . . . Combat | -11 -10 -10 -9 -9 -9 -8 -8 -8 -8 -7 -7 -7 -6 -6 -6 -6 -5 -5 -5 -5 -------- Run | Yrd Mat Min Mat Min Exi Min Mat Gar Mat Fac Low Low Fac Gar Fac DSF Fac Upp Upp War Hostile Shots Fired 1609 | . 16 89 63 . . 22 67 67 114 343 59 26 23 34 . 6 204 197 93 186 Missed 476 | . 6 22 15 . . 3 22 15 36 113 16 14 10 14 . 1 64 43 24 58 Damage Taken 19242 | . 134 1161 594 . . 302 592 831 1241 1963 715 137 182 424 . 133 2646 3637 1250 3300 Core 2263 | . . 131 163 . . 91 20 99 183 382 98 39 . 57 . . 58 228 237 477 Absorbed by Shields . | . . . . . . . . . . . . . . . . . . . . . Redirected to Shielding 131 | . . . 3 . . . . . . . . . . . . . . . . 128 Ignored by Resistances 56 | . . . . . . . . . . . 56 . . . . . . . . . Regen/Repaired (Parts) 989 | . . . 65 . . . 426 . . 86 . . . . . . . . . 412 Core Remaining (%) 57 | 100 . 47 . . . 36 . . 45 . . 25 . . . 93 . . . . Volleys Fired 660 | 6 34 31 49 . . 24 57 46 83 68 30 . 14 35 . 6 102 46 14 15 Largest 3 | 2 2 2 3 . . 3 3 3 3 3 3 . 3 3 . 3 3 3 1 3 Hottest 250 | 40 112 112 69 . . 168 69 250 168 155 155 . 155 250 . 90 109 250 98 7 Shots Fired 1604 | 12 66 54 145 . . 61 171 108 247 147 86 . 38 43 . 18 292 79 16 21 Gun 1279 | 12 58 22 144 . . 61 171 94 247 97 33 . 17 . . 18 241 64 . . Cannon 273 | . 8 24 1 . . . . 2 . 50 51 . 21 37 . . 51 13 15 . Launcher 20 | . . 8 . . . . . 12 . . . . . . . . . . . . Special 32 | . . . . . . . . . . . 2 . . 6 . . . 2 1 21 Kinetic 1097 | 12 52 22 144 . . 44 171 54 88 79 33 . 20 4 . 18 292 64 . . Thermal 421 | . 6 . . . . 17 . 42 159 68 51 . 18 33 . . . 12 15 . Explosive 36 | . . 8 . . . . . 12 . . . . . . . . . . . 16 Electromagnetic 34 | . 8 24 1 . . . . . . . . . . . . . . 1 . . Robot Hit Streak 34 | 8 10 8 14 . . 5 10 12 17 12 9 . 11 9 . 16 34 29 3 21 Robot Miss Streak 9 | 1 5 2 2 . . 4 4 5 8 5 3 . 2 9 . 1 2 4 2 . Penetration Max 1 | . . . . . . . . . 1 . . . . . . . 1 1 . . Secondary Targets 15 | . 1 . . . . 1 3 2 3 1 . . . . . 1 1 2 . . Max Gunslinging Chain 1 | . 1 . . . . 1 1 1 1 1 . . . . . 1 1 1 . . Shots Hit Robots 1087 | 9 36 36 89 . 4 27 108 66 159 96 49 . 24 26 . 14 211 84 19 30 Core Hits 558 | 5 19 33 45 . . 12 46 47 60 51 25 . 8 30 . 6 75 36 6 54 Critical Kills 8 | . . . 3 . . . 1 . 1 . . . . . . 1 . 2 . . Critical Parts Destroyed 6 | . . . . . . . . . . . . . . . . . 2 4 . . Critical Strikes 34 | . . . 3 . . . 1 3 10 . . . . . . 1 5 7 . 4 Burn 12 | . . . . . . . . 3 9 . . . . . . . . . . . Meltdown 1 | . . . . . . . . . . . . . . . . . . 1 . . Destroy 9 | . . . 3 . . . 1 . 1 . . . . . . 1 2 1 . . Blast 3 | . . . . . . . . . . . . . . . . . 3 . . . Smash 4 | . . . . . . . . . . . . . . . . . . 4 . . Sever 4 | . . . . . . . . . . . . . . . . . . 1 . 3 Sunder 1 | . . . . . . . . . . . . . . . . . . . . 1 Melee Attacks 70 | . . . . . 4 . 1 6 . . . . . . . . . 26 20 13 Impact 30 | . . . . . . . 1 6 . . . . . . . . . 19 4 . Slashing 23 | . . . . . . . . . . . . . . . . . . 7 16 . Piercing . | . . . . . . . . . . . . . . . . . . . . . Entropic 13 | . . . . . . . . . . . . . . . . . . . . 13 Sneak Attacks 3 | . . . . . 3 . . . . . . . . . . . . . . . Combat Hostiles . | . . . . . . . . . . . . . . . . . . . . . Follow-up Attacks 5 | . . . . . . . . . . . . . . . . . . 1 4 . Damage Inflicted 33868 | 77 629 1246 1464 . . 421 1682 2300 2715 2259 1275 . 558 1270 . 242 5739 2998 622 8371 Guns 16025 | 77 479 168 1455 . . 421 1682 1004 2700 1264 382 . 197 . . 242 4519 1435 . . Cannons 5045 | . 150 406 . . . . . 13 . 975 893 . 361 478 . . 1194 309 266 . Explosions 9691 | . . 651 . . . . . 1283 . . . . . 792 . . . 243 . 6722 Melee 2351 | . . . . . . . . . . . . . . . . . . 1011 356 984 Ramming 91 | . . 21 9 . . . . . 15 20 . . . . . . 26 . . . Kinetic 14916 | 77 479 168 1455 . . 406 1682 500 1153 905 382 . 231 88 . 242 5713 1435 . . Thermal 6732 | . . . . . . 15 . 616 1547 1334 893 . 327 1182 . . . 552 266 . Explosive 8557 | . . 651 . . . . . 1184 . . . . . . . . . . . 6722 Electromagnetic 556 | . 150 406 . . . . . . . . . . . . . . . . . . Impact 694 | . . . . . . . . . . . . . . . . . . 577 117 . Slashing 1338 | . . . . . . . . . . . . . . . . . . 434 239 665 Piercing . | . . . . . . . . . . . . . . . . . . . . . Entropic 984 | . . . . . . . . . . . . . . . . . . . . 984 Highest Corruption 48 | . . . 2 2 2 2 4 4 6 3 3 . 1 1 1 1 6 43 47 48 Average Corruption 7 | . . . 2 2 2 2 4 4 5 2 1 . 1 1 1 1 3 31 46 21 Corruption Purged 3 | . . . . . . . . . . . 3 . . . . . . . . . Corruption Blocked . | . . . . . . . . . . . . . . . . . . . . . Effects 303 | . . . 14 4 16 7 6 50 45 28 . . 2 10 . . 21 69 28 3 Message Errors 69 | . . . 6 . 3 1 3 14 10 2 . . 1 1 . . 5 17 6 . Matter Fused 63 | . . . 3 2 3 1 . 10 12 4 . . 1 2 . . 6 8 8 3 Heat Flow Errors 40 | . . . . 1 3 1 . 7 2 7 . . . 2 . . 3 12 2 . Energy Discharges 35 | . . . 1 . 3 1 2 7 5 4 . . . . . . 1 8 3 . Parts Rejected 4 | . . . . . . . . . 1 1 . . . . . . 1 1 . . Parts Fused 2 | . . . . . . . . 1 . 1 . . . . . . . . . . Data Loss (minor) 39 | . . . 4 1 2 . 1 5 6 4 . . . 2 . . 2 8 4 . Data Loss (major) 17 | . . . . . 1 . . 2 1 4 . . . 2 . . 1 3 3 . Misfires 15 | . . . . . . 1 . 3 5 . . . . . . . 1 3 2 . Alerts 8 | . . . . . 1 1 . . 1 . . . . 1 . . 1 3 . . Misdirections 1 | . . . . . . . . . . . . . . . . . . 1 . . Weapon Failures 10 | . . . . . . 1 . 1 2 1 . . . . . . . 5 . . Overload Shots . | . . . . . . . . . . . . . . . . . . . . . Overflow Damage 1158 | . 18 68 . . . . . 122 . 5 4 . 4 43 . . 22 391 25 456 Projectiles 196 | . 18 38 . . . . . . . 5 4 . 4 43 . . 22 2 . 60 Explosions 336 | . . 30 . . . . . 122 . . . . . . . . . . . 184 Melee 626 | . . . . . . . . . . . . . . . . . . 389 25 212 Knockbacks 16 | . . . . . . . . . . 1 . . . . . . 14 1 . . Impact 2 | . . . . . . . . . . 1 . . . . . . . 1 . . Kinetic 13 | . . . . . . . . . . . . . . . . . 13 . . . Secondary 1 | . . . . . . . . . . . . . . . . . 1 . . . Self-Inflicted Damage 105 | . . 28 . . . . . 41 . . . . . 14 . . . 22 . . Shots 9 | . . 1 . . . . . 2 . . . . . 4 . . . 2 . . Rammed 16 | . 1 3 4 . . . . . . 6 . . . . . . 2 . . . Targets Rammed 19 | . 1 4 5 . . . . . 1 6 . . . . . . 2 . . . Kicked 1 | . . . . . . . . . 1 . . . . . . . . . . . Crushed 2 | . . 1 1 . . . . . . . . . . . . . . . . . Highest Temperature 368 | . 154 168 87 180 265 361 136 368 360 299 215 . 281 310 . . 132 335 148 35 Average Temperature 84 | . 47 66 30 98 106 135 29 87 100 86 79 . 144 123 . . 81 106 68 17 Received Heat Transfer 4797 | . 78 20 210 . . 189 342 522 549 567 306 9 75 48 . . 450 819 180 433 Effects 8 | . . . . . 1 1 . 1 1 . . . . 2 . . . 2 . . Shutdowns 1 | . . . . . . . . . . . . . . . . . . 1 . . Energy Bleed 3 | . . . . . 1 1 . . 1 . . . . . . . . . . . Interference 2 | . . . . . . . . . . . . . . 2 . . . . . . Matter Decay 1 | . . . . . . . . . . . . . . . . . . 1 . . Damage (minor) 1 | . . . . . . . . 1 . . . . . . . . . . . . Siege Activations . | . . . . . . . . . . . . . . . . . . . . . Robots Corrupted 5 | . . 1 . . . . . . . . . . . . . . . 4 . . Combat Hostiles 5 | . . 1 . . . . . . . . . . . . . . . 4 . . Parts Fried 1 | . . . . . . . . . . . . . . . . . . 1 . . Impact Corruptions 7 | . . . . . . . . . . . . . . . . . . 6 1 . Robots Melted 10 | . . . . . . . . . 2 . . . . 5 . . . 3 . . Combat Hostiles 10 | . . . . . . . . . 2 . . . . 5 . . . 3 . . Parts Melted 48 | . . . . . . . . 5 7 7 2 . 1 18 . . . 7 1 . Heat Transferred 18103 | . . . . . . 37 . 1824 4514 2028 1184 . 444 5422 . . . 2250 400 . Parts Sabotaged . | . . . . . . . . . . . . . . . . . . . . . Parts Stolen . | . . . . . . . . . . . . . . . . . . . . . Parts Stripped . | . . . . . . . . . . . . . . . . . . . . . Power Chain Reactions . | . . . . . . . . . . . . . . . . . . . . . Alert | -11 -10 -10 -9 -9 -9 -8 -8 -8 -8 -7 -7 -7 -6 -6 -6 -6 -5 -5 -5 -5 ------- Run | Yrd Mat Min Mat Min Exi Min Mat Gar Mat Fac Low Low Fac Gar Fac DSF Fac Upp Upp War Peak Influence 1139 | 10 137 185 455 54 . 85 192 1139 685 278 . . 73 783 413 458 423 . . . Initial 555 | . 6 . 72 54 . . 33 124 555 128 . . 9 51 410 289 240 . . . Average 232 | 2 57 34 218 54 . 38 61 508 398 119 . . 37 377 411 342 229 . . . Maximum Alert Level 4 | . . . 2 . . . . 4 2 1 . . . 3 2 2 2 . . . Low Security (%) 54 | 100 100 100 43 100 . 100 100 25 12 78 . . 100 35 . . 30 . . . Level 1 30 | . . . 53 . . . . 29 43 21 . . . 21 . 76 66 . . . Level 2 12 | . . . 3 . . . . 21 43 . . . . 41 100 23 3 . . . Level 3 2 | . . . . . . . . 20 . . . . . 1 . . . . . . Level 4 . | . . . . . . . . 3 . . . . . . . . . . . . Level 5 . | . . . . . . . . . . . . . . . . . . . . . High Security . | . . . . . . . . . . . . . . . . . . . . . Max Security . | . . . . . . . . . . . . . . . . . . . . . Squads Dispatched 41 | . 1 . 3 . . 1 3 . 6 12 . . 2 . 1 1 11 . . . Investigation 13 | . 1 . 3 . . . . . 1 2 . . 1 . . . 5 . . . Extermination 7 | . . . . . . . . . . 5 . . . . . . 2 . . . Reinforcement 13 | . . . . . . 1 . . 3 3 . . . . 1 1 4 . . . Assault . | . . . . . . . . . . . . . . . . . . . . . Garrison 8 | . . . . . . . 3 . 2 2 . . 1 . . . . . . . Intercept . | . . . . . . . . . . . . . . . . . . . . . Searches Triggered . | . . . . . . . . . . . . . . . . . . . . . Construction Impeded 5 | . . . . . . 1 . . . 1 . . . . . . 3 . . . Haulers Reinforced 2 | . . . . . . . . . . 1 . . . . . . 1 . . . Active Scanning Responses . | . . . . . . . . . . . . . . . . . . . . . Cargo Convoy Interrupts 1 | . . . . . . . . . . . . . . . . . 1 . . . Stealth | -11 -10 -10 -9 -9 -9 -8 -8 -8 -8 -7 -7 -7 -6 -6 -6 -6 -5 -5 -5 -5 --------- Run | Yrd Mat Min Mat Min Exi Min Mat Gar Mat Fac Low Low Fac Gar Fac DSF Fac Upp Upp War Distress Signals 10 | . . . 1 . . . . . 2 2 . . . . . . 4 . . 1 Communications Jammed . | . . . . . . . . . . . . . . . . . . . . . Distress Signals . | . . . . . . . . . . . . . . . . . . . . . Times Spotted 315 | . 10 30 33 . . 3 20 27 32 21 13 3 6 18 . 11 34 20 6 28 Peak Tracking Total 17 | . 3 17 6 . . 3 5 5 4 4 4 3 4 8 . 4 4 9 3 16 Tactical Retreats 12 | . . 2 2 . . . . 1 . 1 . 1 . 1 . . 4 . . . Traps | -11 -10 -10 -9 -9 -9 -8 -8 -8 -8 -7 -7 -7 -6 -6 -6 -6 -5 -5 -5 -5 ------- Run | Yrd Mat Min Mat Min Exi Min Mat Gar Mat Fac Low Low Fac Gar Fac DSF Fac Upp Upp War Traps Triggered 16 | . . . 1 . . . . 8 1 . . . . 2 . . 3 . . 1 Indirectly . | . . . . . . . . . . . . . . . . . . . . . Trap Hack Attempts . | . . . . . . . . . . . . . . . . . . . . . Triggered . | . . . . . . . . . . . . . . . . . . . . . Disarmed . | . . . . . . . . . . . . . . . . . . . . . Reprogrammed . | . . . . . . . . . . . . . . . . . . . . . Reused . | . . . . . . . . . . . . . . . . . . . . . Traps Extracted . | . . . . . . . . . . . . . . . . . . . . . Installed . | . . . . . . . . . . . . . . . . . . . . . Triggered 22 | . . . . . . . . . . . . 1 . . . . 1 . . 20 Most Traps Carried 4 | . . 4 4 . . . . . . . . . . . . . . . . . Machines | -11 -10 -10 -9 -9 -9 -8 -8 -8 -8 -7 -7 -7 -6 -6 -6 -6 -5 -5 -5 -5 ---------- Run | Yrd Mat Min Mat Min Exi Min Mat Gar Mat Fac Low Low Fac Gar Fac DSF Fac Upp Upp War Machines Disabled 26 | . . . 2 . . . . 5 1 2 . . . 9 . . 4 1 . 2 Max in Single Turn 2 | . . . 1 . . . . 2 1 . . . . 1 . . 1 1 . 1 Garrison Access 3 | . . . . . . . . . 1 1 . . . . . . 1 . . . Garrison Relay 2 | . . . . . . . . . . . . . . 2 . . . . . . Phase Generator 2 | . . . . . . . . 1 . . . . . 1 . . . . . . Machines Repaired . | . . . . . . . . . . . . . . . . . . . . . Machines Dismantled 2 | . . . . . . . . 1 . . . . . . . . . . . 1 Machines Sabotaged . | . . . . . . . . . . . . . . . . . . . . . Overloaded Fab Kills . | . . . . . . . . . . . . . . . . . . . . . Hacking | -11 -10 -10 -9 -9 -9 -8 -8 -8 -8 -7 -7 -7 -6 -6 -6 -6 -5 -5 -5 -5 --------- Run | Yrd Mat Min Mat Min Exi Min Mat Gar Mat Fac Low Low Fac Gar Fac DSF Fac Upp Upp War Machines Accessed 62 | . 4 . 10 . 1 . 3 3 8 8 . . 6 1 1 . 10 . . 7 Terminals 37 | . 4 . 8 . . . 1 3 6 4 . . 4 1 1 . 5 . . . Fabricators 4 | . . . . . . . . . . 2 . . 1 . . . 1 . . . Repair Stations 5 | . . . 1 . . . 1 . 1 1 . . . . . . 1 . . . Recycling Units . | . . . . . . . . . . . . . . . . . . . . . Scanalyzers 3 | . . . 1 . . . . . . . . . . . . . 2 . . . Garrison Access 5 | . . . . . . . 1 . 1 1 . . 1 . . . 1 . . . Total Hacks 208 | . 14 . 28 . 1 . 19 7 26 49 . . 18 3 1 . 25 . . 17 Successful 142 | . 7 . 15 . 1 . 18 2 10 41 . . 10 2 1 . 18 . . 17 Failed 63 | . 6 . 12 . . . 1 5 15 8 . . 8 1 . . 7 . . . Catastrophic 8 | . 1 . 3 . . . . . 2 1 . . 1 . . . . . . . Database Lockouts 3 | . 1 . 1 . . . . . 1 . . . . . . . . . . . Manual 68 | . 11 . 14 . 1 . 1 3 23 7 . . 4 1 . . 3 . . . Terminals 106 | . 14 . 17 . . . 8 7 21 12 . . 13 3 1 . 10 . . . Fabricators 35 | . . . . . . . . . . 30 . . 2 . . . 3 . . . Repair Stations 23 | . . . 3 . . . 10 . 4 4 . . . . . . 2 . . . Recycling Units . | . . . . . . . . . . . . . . . . . . . . . Scanalyzers 16 | . . . 8 . . . . . . . . . . . . . 8 . . . Garrison Access 10 | . . . . . . . 1 . 1 3 . . 3 . . . 2 . . . Terminal Hacks 70 | . 7 . 6 . 1 . 7 2 7 7 . . 8 2 1 . 5 . . 17 Record 17 | . . . . . . . . . . . . . 1 . . . . . . 16 Robot Schematic 2 | . 1 . . . . . . . 1 . . . . . . . . . . . Robot Analysis 10 | . 4 . 2 . . . 1 . . 2 . . 1 . . . . . . . Prototype ID Bank 1 | . . . . . . . 1 . . . . . . . . . . . . . Open Door 1 | . . . . . . . . . . . . . . . . . . . . 1 Open DSF 3 | . . . . . . . . . . . . . . . 1 . 2 . . . Branch Access Points 2 | . . . . . . . 1 . . . . . . . . . 1 . . . Emergency Access Points 1 | . . . . . . . . 1 . . . . . . . . . . . . Terminal Index 2 | . . . . . . . . . 1 . . . 1 . . . . . . . Fabricator Index 1 | . . . . . . . . . . 1 . . . . . . . . . . Garrison Index 1 | . . . . . . . . . . . . . 1 . . . . . . . Alert Level 9 | . 1 . 2 . . . 1 . 2 1 . . 1 . . . 1 . . . Unreport Threat 8 | . . . 2 . . . 1 . 3 1 . . . . . . 1 . . . Locate Traps 3 | . 1 . . . . . . . . . . . 2 . . . . . . . Patrol Status 1 | . . . . . . . 1 . . . . . . . . . . . . . Reinforcement Status 1 | . . . . . . . . . . 1 . . . . . . . . . . Recall Investigation 1 | . . . . . . . . . . . . . 1 . . . . . . . Recall Reinforcements 1 | . . . . . . . . . . 1 . . . . . . . . . . Zone Layout 1 | . . . . . . . 1 . . . . . . . . . . . . . Garrison Registry 2 | . . . . . . . . 1 . . . . . 1 . . . . . . Patrol Navigation 1 | . . . . . . . . . . . . . . 1 . . . . . . Derelict Proto ID Bank 1 | . . . . . 1 . . . . . . . . . . . . . . . Fabricator Hacks 33 | . . . . . . . . . . 29 . . 1 . . . 3 . . . Network Status 3 | . . . . . . . . . . 1 . . 1 . . . 1 . . . Load Schematic 15 | . . . . . . . . . . 14 . . . . . . 1 . . . Build 15 | . . . . . . . . . . 14 . . . . . . 1 . . . Repair Station Hacks 15 | . . . 2 . . . 10 . 1 2 . . . . . . . . . . Scan Component 8 | . . . 1 . . . 5 . 1 1 . . . . . . . . . . Repair 7 | . . . 1 . . . 5 . . 1 . . . . . . . . . . Recycling Unit Hacks . | . . . . . . . . . . . . . . . . . . . . . Scanalyzer 14 | . . . 6 . . . . . . . . . . . . . 8 . . . Insert Component 6 | . . . 3 . . . . . . . . . . . . . 3 . . . Analyze 8 | . . . 3 . . . . . . . . . . . . . 5 . . . Garrison Access Hacks 6 | . . . . . . . 1 . 1 1 . . 1 . . . 2 . . . Unlock Access 3 | . . . . . . . 1 . . . . . 1 . . . 1 . . . Seal Access 3 | . . . . . . . . . 1 1 . . . . . . 1 . . . Unauthorized Hacks 4 | . . . 1 . . . . . 1 2 . . . . . . . . . . Terminals . | . . . . . . . . . . . . . . . . . . . . . Fabricators 1 | . . . . . . . . . . 1 . . . . . . . . . . Prioritize 1 | . . . . . . . . . . 1 . . . . . . . . . . Repair Stations 3 | . . . 1 . . . . . 1 1 . . . . . . . . . . Mechanics 3 | . . . 1 . . . . . 1 1 . . . . . . . . . . Recycling Units . | . . . . . . . . . . . . . . . . . . . . . Scanalyzers . | . . . . . . . . . . . . . . . . . . . . . Garrison Access . | . . . . . . . . . . . . . . . . . . . . . Data Cores Recovered 2 | . 1 . 1 . . . . . . . . . . . . . . . . . Used 1 | . 1 . . . . . . . . . . . . . . . . . . . Hacking Detections 48 | . 4 . 10 . . . 3 3 7 6 . . 6 1 1 . 7 . . . Full Trace Events 13 | . 2 . 3 . . . . . 1 2 . . 1 . . . 4 . . . Feedback Events 1 | . . . . . . . . . . . . . 1 . . . . . . . Corruption 1 | . . . . . . . . . . . . . 1 . . . . . . . Feedback Blocked . | . . . . . . . . . . . . . . . . . . . . . Robot Schematics Acquired 2 | . 1 . . . . . . . 1 . . . . . . . . . . . Robots Built 42 | . . . . . . . . . . 42 . . . . . . . . . . Authchips 14 | . . . . . . . . . . 14 . . . . . . . . . . Time 870 | . . . . . . . . . . 870 . . . . . . . . . . Total Robot Build Rating 126 | . . . . . . . . . . 126 . . . . . . . . . . Part Schematics Acquired 5 | . . . 3 . . . . . . . . . . . . . 2 . . . Parts Built 1 | . . . . . . . . . . . . . . . . . 1 . . . Authchips . | . . . . . . . . . . . . . . . . . . . . . Time 102 | . . . . . . . . . . . . . . . . . 102 . . . Total Part Build Rating 8 | . . . . . . . . . . . . . . . . . 8 . . . Parts Repaired 7 | . . . 1 . . . 5 . . 1 . . . . . . . . . . Time 233 | . . . 32 . . . 179 . . 22 . . . . . . . . . . Parts Recycled . | . . . . . . . . . . . . . . . . . . . . . Recycled Matter . | . . . . . . . . . . . . . . . . . . . . . Retrieved Matter . | . . . . . . . . . . . . . . . . . . . . . Retrieved Components . | . . . . . . . . . . . . . . . . . . . . . Parts Scanalyzed 5 | . . . 3 . . . . . . . . . . . . . 2 . . . Part Schematics Acquired 5 | . . . 3 . . . . . . . . . . . . . 2 . . . Parts Damaged 1 | . . . . . . . . . . . . . . . . . 1 . . . Bothacking | -11 -10 -10 -9 -9 -9 -8 -8 -8 -8 -7 -7 -7 -6 -6 -6 -6 -5 -5 -5 -5 ------------ Run | Yrd Mat Min Mat Min Exi Min Mat Gar Mat Fac Low Low Fac Gar Fac DSF Fac Upp Upp War Used RIF Installer . | . . . . . . . . . . . . . . . . . . . . . Robots Hacked 14 | . . . . . 3 . . . . . 2 . . 2 . . . 2 1 4 Non-combat 6 | . . . . . 2 . . . . . 1 . . . . . . . 1 2 Combat 8 | . . . . . 1 . . . . . 1 . . 2 . . . 2 . 2 Robot Hacks Applied 14 | . . . . . 3 . . . . . 2 . . 2 . . . 2 1 4 parse_system 14 | . . . . . 3 . . . . . 2 . . 2 . . . 2 1 4 Relay Couplers Released 11 | . . . . . . . . . 2 . . . . 9 . . . . . . Machine Destruction 11 | . . . . . . . . . 2 . . . . 9 . . . . . . Fabnet Peak Effective % . | . . . . . . . . . . . . . . . . . . . . . Robots Rewired 4 | . . . . . . . . . . . . . . 2 . . . 2 . . Allies Hacked . | . . . . . . . . . . . . . . . . . . . . . Hacks Repelled . | . . . . . . . . . . . . . . . . . . . . . Allies | -11 -10 -10 -9 -9 -9 -8 -8 -8 -8 -7 -7 -7 -6 -6 -6 -6 -5 -5 -5 -5 -------- Run | Yrd Mat Min Mat Min Exi Min Mat Gar Mat Fac Low Low Fac Gar Fac DSF Fac Upp Upp War Total Allies 48 | . . 2 . . . . . . . 42 . . . 2 . . . 2 . . Largest Group 36 | . . 2 . . . . . . . 36 . . . 2 1 1 . 2 . . Highest-Rated Group 888 | . . 43 . . . . . . . 888 . . . 238 110 110 . 59 . . Highest-Rated Ally 119 | . . 31 . . . . . . . 25 . . . 119 110 110 . 30 . . Warlord Squad Rendezvous 1 | . . . . . . . . . . . . . . . . . 1 . . . Dakka 1 | . . . . . . . . . . . . . . . . . 1 . . . Total Orders 17 | . . . . . . . . . . 17 . . . . . . . . . . STAY 10 | . . . . . . . . . . 10 . . . . . . . . . . FOLLOW 7 | . . . . . . . . . . 7 . . . . . . . . . . Ally Attacks 121 | . . 8 . . . . . . . 92 . . . 14 2 5 . . . . Total Damage 3403 | . . 125 . . . . . . . 1977 . . . 859 136 306 . . . . Kills 32 | . . 2 . . . . . . . 23 . . . 3 . 4 . . . . Allies Corrupted . | . . . . . . . . . . . . . . . . . . . . . Allies Melted 3 | . . . . . . . . . . . . . . . . . . 1 . 2 Intel | -11 -10 -10 -9 -9 -9 -8 -8 -8 -8 -7 -7 -7 -6 -6 -6 -6 -5 -5 -5 -5 ------- Run | Yrd Mat Min Mat Min Exi Min Mat Gar Mat Fac Low Low Fac Gar Fac DSF Fac Upp Upp War Robot Analysis Total 10 | . 4 . 2 . . . 1 . . 2 . . 1 . . . . . . . Derelict Logs Recovered 3 | . . 2 . 1 . . . . . . . . . . . . . . . . Drone Launches . | . . . . . . . . . . . . . . . . . . . . . Drone Recoveries . | . . . . . . . . . . . . . . . . . . . . . Exploration | -11 -10 -10 -9 -9 -9 -8 -8 -8 -8 -7 -7 -7 -6 -6 -6 -6 -5 -5 -5 -5 ------------- Run | Yrd Mat Min Mat Min Exi Min Mat Gar Mat Fac Low Low Fac Gar Fac DSF Fac Upp Upp War Turns Passed 20912 | 126 894 1052 1602 221 933 274 928 2186 1636 2401 632 145 680 1214 21 312 2303 1356 599 1397 Spaces Moved 9527 | 60 443 580 726 93 385 54 209 771 517 1119 387 82 454 602 20 150 1036 531 464 844 Core 5 | 3 2 . . . . . . . . . . . . . . . . . . . Treads 5242 | 57 435 580 726 93 385 54 209 771 158 78 2 . . . . 123 1036 529 5 1 Legs 2474 | . . . . . . . . . 359 162 . . . 602 20 27 . 2 459 843 Wheels 1800 | . . . . . . . . . . 879 385 82 454 . . . . . . . Hover 6 | . 6 . . . . . . . . . . . . . . . . . . . Flight . | . . . . . . . . . . . . . . . . . . . . . Fastest Speed 50 | 50 116 160 160 240 240 240 240 240 195 130 130 130 115 110 110 106 170 100 106 105 Average Speed 173 | 154 160 160 182 240 240 240 240 240 229 150 131 130 129 163 110 160 170 205 110 133 Slowest Speed 410 | 160 300 160 240 240 240 240 240 320 340 330 410 130 145 192 110 250 170 246 243 330 Overloaded Moves . | . . . . . . . . . . . . . . . . . . . . . Propulsion Burnouts . | . . . . . . . . . . . . . . . . . . . . . Robots Hopped . | . . . . . . . . . . . . . . . . . . . . . Cave-ins Triggered . | . . . . . . . . . . . . . . . . . . . . . Exploration Rate (%) 46 | 5 63 96 63 22 69 14 20 85 60 19 68 7 14 64 1 91 21 67 60 75 Regions Visited 20 Branch Regions 9 Pre-discovered Areas 3 | . . 1 . . . . . . . . 1 . . . . . . . . 1 Known Exits Taken 9 | . . . 1 . . 1 1 . . 1 . . 1 . 1 . 1 1 1 . Unknown Exits Taken 8 | 1 1 1 . 1 1 . . . 1 . 1 1 . . . . . . . . Scrap Searched 9 | . . 2 . 1 . . . . . . 2 2 . . . . . 2 . . Spaces Dug 19 | . . . . . . 4 1 10 . 1 . . . . . . 2 . 1 . Terrain Destroyed 257 | . . 44 . . . 4 1 29 . 6 9 . 3 2 . . 61 15 7 76 Melee 3 | . . . . . . . 1 2 . . . . . . . . . . . . Projectile 105 | . . . . . . 4 . . . 6 9 . 3 . . . 61 15 7 . AOE 149 | . . 44 . . . . . 27 . . . . . 2 . . . . . 76 Terrain Rammed . | . . . . . . . . . . . . . . . . . . . . . Walls Destroyed . | . . . . . . . . . . . . . . . . . . . . . Machines Disabled . | . . . . . . . . . . . . . . . . . . . . . Actions | -11 -10 -10 -9 -9 -9 -8 -8 -8 -8 -7 -7 -7 -6 -6 -6 -6 -5 -5 -5 -5 --------- Run | Yrd Mat Min Mat Min Exi Min Mat Gar Mat Fac Low Low Fac Gar Fac DSF Fac Upp Upp War Total 12579 | 80 569 646 905 92 393 146 515 943 791 1716 459 120 525 806 19 212 1365 684 518 1075 Wait 1452 | . 25 17 68 . . 63 229 11 148 462 11 38 20 51 . 25 173 14 13 84 Move 9504 | 59 442 579 725 92 384 53 208 768 516 1118 386 81 453 600 19 149 1035 530 463 844 Hop . | . . . . . . . . . . . . . . . . . . . . . Pick Up 163 | 8 24 5 14 . 1 1 5 18 3 7 11 . 7 28 . 4 9 3 1 14 Fast Attach 156 | 7 7 . 11 . . . 4 4 11 23 4 . 6 12 . 11 9 17 3 27 Attach 95 | . . 5 1 . . . 4 10 2 16 2 . 7 10 . . 4 17 4 13 Detach 43 | . 2 . 2 . . . . 4 . . 1 . 9 3 . . 2 12 1 7 Swap 108 | . 7 4 8 . 4 5 4 9 12 5 3 1 2 11 . 2 13 2 1 15 Drop 215 | . 27 1 22 . . . 3 15 15 11 9 . 7 40 . 15 16 . 2 32 Fire 660 | 6 34 31 49 . . 24 57 46 83 68 30 . 14 35 . 6 102 46 14 15 Melee 65 | . . . . . 4 . 1 6 . . . . . . . . . 25 16 13 Ram . | . . . . . . . . . . . . . . . . . . . . . Kick 1 | . . . . . . . . . 1 . . . . . . . . . . . Crush 18 | . 1 4 5 . . . . . . 6 . . . . . . 2 . . . Escape Stasis 16 | . . . . . . . . 16 . . . . . . . . . . . . Rewire 36 | . . . . . . . . . . . 2 . . 16 . . . 18 . . Trap . | . . . . . . . . . . . . . . . . . . . . . Miscellaneous 47 | . . . . . . . . 36 . . . . . . . . . . . 11 Route ------- -11/Scrapyard -10/Materials (discovered 3 exits: *Mat / [*Min x2]) -10/Mines (discovered 2 exits: *Mat x2) -9/Materials (discovered 3 exits: *Mat / *Min x2) -9/Mines -9/Exiles -8/Mines -8/Materials -8/Garrison (discovered 3 exits: *Mat x3) -8/Materials (discovered 2 exits: *Fac x2) -7/Factory -7/Lower Caves -7/Lower Caves -6/Factory (discovered 2 exits: *Fac / Gar) -6/Garrison (discovered 4 exits: *Fac x4) -6/Factory -6/DSF -5/Factory (discovered 2 exits: *Upp x2) -5/Upper Caves -5/Upper Caves (discovered 2 exits: *Fac / *War) -5/Warlord History --------- Turn | Location | Event 8 | -11/Scrapyard | Discovered new exit (range 16) 127 | -11/Scrapyard | Entered Materials 311 | -10/Materials | Build established: Mutant 432 | -10/Materials | Discovered new exit (range 16) 528 | -10/Materials | Discovered new exit (range 6) 658 | -10/Materials | Discovered new exit (range 10) 772 | -10/Materials | Central database locked down 1021 | -10/Materials | Entered Mines 1050 | -10/Mines | Discovered new exit (range 15) 1154 | -10/Mines | Assembled infested the area 1159 | -10/Mines | Assisted by a Guerilla fighting off Assembled 1192 | -10/Mines | Destroyed 10 combat bots 1235 | -10/Mines | Lost 5 parts (2n1u2w) 1772 | -10/Mines | Learned location of Recycling (-9) 1809 | -10/Mines | Found a hidden stash of uninstalled traps 1918 | -10/Mines | Learned location of 2 exits from Materials 1918 | -10/Mines | Discovered new exit (range 10) 2001 | -10/Mines | Core integrity fell below 50% 2073 | -10/Mines | Entered Materials 2073 | -9/Materials | Evolved 2 slots: Utility x1, Weapon x1 2074 | -9/Materials | Identified exit to Materials 2074 | -9/Materials | Identified exit to Mines 2364 | -9/Materials | Repaired Hvy. Assault Rifle 2375 | -9/Materials | Discovered exit to Mines (range 15) 2922 | -9/Materials | Build established: Tank 3603 | -9/Materials | Central database locked down 3675 | -9/Materials | Entered Mines 3887 | -9/Mines | Deemed a non-threat by the Exiles lab entrance 3887 | -9/Mines | Discovered new exit (range 5) 3896 | -9/Mines | Entered Exiles 3956 | -9/Exiles | Met 8R-AWN 4002 | -9/Exiles | Met EX-HEX 4175 | -9/Exiles | Met EX-BIN 4201 | -9/Exiles | Aligned with FarCom system 4203 | -9/Exiles | Given EX-Vault access code 4259 | -9/Exiles | Opened EX-Vault 4273 | -9/Exiles | Found Firepult 4308 | -9/Exiles | Build established: Mutant 4327 | -9/Exiles | Warned to stay clear of 0b10 Research branches 4394 | -9/Exiles | Met EX-DEC 4497 | -9/Exiles | Visited The Gauntlet 4793 | -9/Exiles | Discovered new exit (range 15) 4829 | -9/Exiles | Left Exiles lab with Firepult 4829 | -9/Exiles | Entered Mines 4967 | -8/Mines | Core integrity fell below 50% 5055 | -8/Mines | Discovered exit to Materials (range 16) 5103 | -8/Mines | Entered Materials 5103 | -8/Materials | Evolved 2 slots: Utility x2 5371 | -8/Materials | Repaired Hvy. Ion Engine 5476 | -8/Materials | Repaired Med. Armor Plating 5513 | -8/Materials | Repaired Autogun 5546 | -8/Materials | Repaired Hvy. Assault Rifle 5580 | -8/Materials | Repaired Hvy. Assault Rifle 5709 | -8/Materials | Garrison activated, responded to threat 5814 | -8/Materials | Build established: Hacker-Skirmisher 5848 | -8/Materials | Garrison activated, responded to threat 5880 | -8/Materials | Identified exit to Garrison 5967 | -8/Materials | Garrison activated, responded to threat 6031 | -8/Materials | Entered Garrison 6265 | -8/Garrison | Triggered checkpoint 6578 | -8/Garrison | Triggered checkpoint 6952 | -8/Garrison | Discovered new exit (range 11) 7036 | -8/Garrison | Phase Generator disabled 7233 | -8/Garrison | Triggered checkpoint 7350 | -8/Garrison | Discovered new exit (range 10) 7453 | -8/Garrison | Triggered checkpoint 7691 | -8/Garrison | Triggered checkpoint 7726 | -8/Garrison | Triggered checkpoint 7790 | -8/Garrison | Build established: Scavenger-Skirmisher 7835 | -8/Garrison | Discovered new exit (range 22) 7835 | -8/Garrison | Discovered new exit (range 58) 7835 | -8/Garrison | Discovered new exit (range 68) 8056 | -8/Garrison | Attempted to access garrison exit controls, blocked by remote lockdown 8217 | -8/Garrison | Entered Materials 8521 | -8/Materials | Garrison activated, responded to threat 8680 | -8/Materials | Garrison activated, responded to threat 8811 | -8/Materials | Build established: Hacker-Skirmisher 9142 | -8/Materials | Discovered new exit (range 5) 9686 | -8/Materials | Core integrity fell below 50% 9755 | -8/Materials | Central database locked down 9818 | -8/Materials | Discovered new exit (range 15) 9853 | -8/Materials | Entered Factory 9853 | -7/Factory | Evolved 2 slots: Propulsion x1, Utility x1 9910 | -7/Factory | Repaired Gauss Rifle 10170 | -7/Factory | Garrison activated, responded to threat 10368 | -7/Factory | Lost 11 parts (1p4n2u4w) 10886 | -7/Factory | Discovered new exit (range 7) 10978 | -7/Factory | Fabricated C-17 Slicer (x3) 11044 | -7/Factory | Fabricated C-17 Slicer (x3) 11111 | -7/Factory | Fabricated C-17 Slicer? 11181 | -7/Factory | Fabricated C-17 Slicer (x3) 11221 | -7/Factory | Lost 3 allies 11282 | -7/Factory | Fabricated C-17 Slicer? 11364 | -7/Factory | Fabricated C-17 Slicer? 11394 | -7/Factory | Core integrity fell below 50% 11405 | -7/Factory | Build established: Commander-Skirmisher 11536 | -7/Factory | Fabricated C-17 Slicer? 11646 | -7/Factory | Fabricated C-17 Slicer (x3) 11711 | -7/Factory | Fabricated C-17 Slicer (x3) 11771 | -7/Factory | Fabricated C-17 Slicer (x3) 11834 | -7/Factory | Fabricated C-17 Slicer (x3) 11900 | -7/Factory | Fabricated C-17 Slicer (x3) 11964 | -7/Factory | Fabricated C-17 Slicer? 12058 | -7/Factory | Fabricated C-17 Slicer (x3) 12107 | -7/Factory | Lost 33 allies 12241 | -7/Factory | Identified exit to Lower Caves 12254 | -7/Factory | Entered Lower Caves 12447 | -7/Lower Caves | Attacked by a faux Warlord 12456 | -7/Lower Caves | Met a Warlord Commander 12457 | -7/Lower Caves | Learned location of Warlord (-5) 12458 | -7/Lower Caves | Warlord Commander delivered Encrypted Comm Array 12474 | -7/Lower Caves | Found Unknown Device 12474 | -7/Lower Caves | Identified Encrypted Comm Array 12626 | -7/Lower Caves | Encountered a Warlord checkpoint 12811 | -7/Lower Caves | Build established: Hacker-Gunner 12860 | -7/Lower Caves | Discovered new exit (range 15) 12886 | -7/Lower Caves | Entered another Lower Caves area 12889 | -7/Lower Caves | Encountered a Warlord checkpoint 12896 | -7/Lower Caves | Discovered new exit (range 9) 12948 | -7/Lower Caves | Attracted the attention of an 0b10 checkpoint 13031 | -7/Lower Caves | Entered Factory 13031 | -6/Factory | Evolved 2 slots: Power x1, Propulsion x1 13340 | -6/Factory | Build established: Hacker-Skirmisher 13428 | -6/Factory | Spotted B-75 Beast 13621 | -6/Factory | Discovered new exit (range 15) 13629 | -6/Factory | Garrison activated, responded to threat 13694 | -6/Factory | Identified exit to Garrison 13711 | -6/Factory | Entered Garrison 13721 | -6/Garrison | Met a derelict Sapper fleeing the area 13723 | -6/Garrison | Phase Generator disabled 13770 | -6/Garrison | Triggered checkpoint 13802 | -6/Garrison | Garrison Relay disabled 13879 | -6/Garrison | Discovered new exit (range 54) 13879 | -6/Garrison | Discovered new exit (range 90) 13879 | -6/Garrison | Discovered new exit (range 46) 13879 | -6/Garrison | Discovered new exit (range 45) 13906 | -6/Garrison | H-XX Assembler disabled 13973 | -6/Garrison | Found Prototype Device 13973 | -6/Garrison | Identified Active Sensor Suite 14141 | -6/Garrison | Garrison Relay disabled 14259 | -6/Garrison | Triggered checkpoint 14334 | -6/Garrison | Spotted B-75 Beast 14351 | -6/Garrison | Destroyed B-75 Beast 14427 | -6/Garrison | Triggered checkpoint 14466 | -6/Garrison | Destroyed 9 combat bots 14584 | -6/Garrison | Spotted Executioner 14584 | -6/Garrison | Spotted Executioner 14605 | -6/Garrison | Rewired Executioner 14628 | -6/Garrison | Rewired Executioner 14641 | -6/Garrison | Allies destroyed Executioner 14656 | -6/Garrison | Allies destroyed Executioner 14669 | -6/Garrison | Found Exp. Core Analyzer 14675 | -6/Garrison | Found Exp. Targeting Computer 14680 | -6/Garrison | Found Exp. Core Analyzer 14699 | -6/Garrison | Found Exp. Targeting Computer 14744 | -6/Garrison | Attempted to access garrison exit controls, blocked by remote lockdown 14768 | -6/Garrison | Build established: Scavenger-Skirmisher 14836 | -6/Garrison | Spotted B-75 Beast 14925 | -6/Garrison | Entered Factory 14925 | -6/Factory | Accompanied by 1 ally 14936 | -6/Factory | Identified exit to DSF 14946 | -6/Factory | Entered DSF 14946 | -6/DSF | Accompanied by 1 ally 14947 | -6/DSF | Joined Warlord attack on 0b10 via DSF 14972 | -6/DSF | Additional patrols routed to DSF 15074 | -6/DSF | Discovered new exit (range 14) 15258 | -6/DSF | Entered Factory 15258 | -5/Factory | Spotted B-75 Beast 15258 | -5/Factory | Evolved 2 slots: Utility x2 15354 | -5/Factory | Joined by Warlord Dakka squad 15412 | -5/Factory | Identified exit to Garrison 15518 | -5/Factory | Lost 3 allies 15682 | -5/Factory | Build established: Scavenger-Tank 15996 | -5/Factory | Identified exit to Upper Caves 16547 | -5/Factory | Build established: Hacker-Skirmisher 16640 | -5/Factory | Fabricated Helical Railgun? 17396 | -5/Factory | Cargo convoy interrupted 17561 | -5/Factory | Entered Upper Caves 17600 | -5/Upper Caves | Spotted B-75 Beast 17636 | -5/Upper Caves | Destroyed B-75 Beast 17837 | -5/Upper Caves | Attracted the attention of an 0b10 outpost 17848 | -5/Upper Caves | Build established: Hacker-Gunner 17870 | -5/Upper Caves | System corruption reached 10% 17933 | -5/Upper Caves | Lost 16 parts (3p3n6u4w) 17938 | -5/Upper Caves | System corruption reached 30% 18354 | -5/Upper Caves | Build established: Scavenger-Mutant 18692 | -5/Upper Caves | Discovered new exit (range 13) 18728 | -5/Upper Caves | Identified exit to Upper Caves 18786 | -5/Upper Caves | Build established: Scavenger-Gladiator 18917 | -5/Upper Caves | Entered another Upper Caves area 18981 | -5/Upper Caves | Lost 7 parts (1p3n2u1w) 19116 | -5/Upper Caves | Discovered new exit (range 10) 19124 | -5/Upper Caves | Identified exit to Factory 19253 | -5/Upper Caves | Build established: Scavenger-Mutant 19478 | -5/Upper Caves | Discovered new exit (range 15) 19494 | -5/Upper Caves | Attracted the attention of an 0b10 checkpoint 19506 | -5/Upper Caves | Identified exit to Warlord 19513 | -5/Upper Caves | Core integrity fell below 50% 19516 | -5/Upper Caves | Entered Warlord 19541 | -5/Warlord | Lost 4 parts (2p1u1w) 19573 | -5/Warlord | System corruption cleaned by Quarantine Array 19834 | -5/Warlord | Met Warlord 19859 | -5/Warlord | Warlord's base attacked by MAIN.C 20131 | -5/Warlord | Found Prototype Special Weapon 20131 | -5/Warlord | Identified RU-N14's Throwing Claymores v3 20137 | -5/Warlord | Found RU-N14's Throwing Claymores v3 20139 | -5/Warlord | Found RU-N14's Throwing Claymores v3 20142 | -5/Warlord | Found RU-N14's Throwing Claymores v3 20145 | -5/Warlord | Found RU-N14's Throwing Claymores v3 20148 | -5/Warlord | Found RU-N14's Throwing Claymores v3 20209 | -5/Warlord | Warlord forces counterattacked 20318 | -5/Warlord | Build established: Scavenger-Gunner 20319 | -5/Warlord | Found Prototype Reactor 20319 | -5/Warlord | Identified Vortex Chain Reactor 20338 | -5/Warlord | Found Prototype Hackware 20338 | -5/Warlord | Identified System Mapper 20436 | -5/Warlord | Found Prototype Ballistic Cannon 20436 | -5/Warlord | Identified Hvy. Autocannon 20519 | -5/Warlord | Learned location of Quarantine (-2) 20519 | -5/Warlord | Learned 4 Armory zone layouts 20519 | -5/Warlord | Learned 4 Research zone layouts 20519 | -5/Warlord | Learned 4 Research zone layouts 20522 | -5/Warlord | Learned Armory security intel 20522 | -5/Warlord | Learned Factory repair station intel 20534 | -5/Warlord | Warlord base infiltrated, sounded retreat 20593 | -5/Warlord | Found Prototype Device 20593 | -5/Warlord | Identified Minesniffer Drone Bay 20621 | -5/Warlord | Build established: Scavenger-Tank 20654 | -5/Warlord | Found Prototype Energy Gun 20654 | -5/Warlord | Identified Vortex Rifle 20659 | -5/Warlord | Found Vortex Rifle 20666 | -5/Warlord | Found Prototype Piercing Weapon 20666 | -5/Warlord | Identified Vortex Lance 20670 | -5/Warlord | Found Vortex Lance 20816 | -5/Warlord | Spotted B-86 Titan 20836 | -5/Warlord | Spotted Striker 20847 | -5/Warlord | Destroyed B-86 Titan 20868 | -5/Warlord | Destroyed 7 combat bots 20871 | -5/Warlord | Destroyed Striker 20880 | -5/Warlord | Spotted Striker 20894 | -5/Warlord | Core integrity fell below 20% 20910 | -5/Warlord | Destroyed Striker 20913 | -5/Warlord | Destroyed by X-77 Beamer with Gatling Laser Last Messages --------------- 20905_ Striker Prototype Protection severed. 20905_ Destroyed Com. Wheel. 20907_ Critical hit (Impale). 20908_ Destroyed Com. Wheel. 20908_ I-47 Archangel destroyed. 20908_ G-67 Veteran destroyed. 20909_ System corrupted: Matter fused (-6). 20909_ The unstable cave ceiling collapses. 20909_ Arm. Medium Treads destroyed. 20910_ P-70 Sage resets G-50 Soldier, system corruption cleaned. 20910_ RU-N14's Throwing Claymores v3 expended. 20910_ Striker Lgt. Quantum Reactor severed. 20910_ Destroyed Adv. Heat Sink. 20910_ Destroyed Prototype Device. 20910_ Striker destroyed. 20910_ Destroyed Adv. Heat Sink. 20911_ Antimatter Reactor destroyed. 20911_ Critical hit (Burn: +37). 20913_ The unstable cave ceiling collapses. Map ----- +----------------------------------------------------+ | + X"#??????????????? | | # ""#??????????????? | | ########## # ########+## ##""X""#??????????????? | | ?????????#####????? ## ##"""""#??????????????? | | ???????######????# ## ########??????????????? | | ???????# = #????#! [## #?????????????????????? | | ???????#!/ #????#!//[## #?????????????????????? | | ???????#*! #????####### #?????????????????????? | | ???????# ############ ##????????????????????? | | ???????# ## # #????????????????????? | | ???????## #### # #????????????????????? | | #########+#### # #????????????????????? | | # # #????????????????????? | | + """"# #????????????????????? | | ############+# """"## ##????#""?????????????? | | # """"" # """"# #?????#""#????????????? | | # """"" # """"## #?????#""#????????????? | | # """"" # ## #?????#""#?????????#??? | | # ########### #######""#####?##![#??? | | # ?#?# ?# #=*!""%=!"#!==*=#### | | # ## # # % [ #!=*""% %=![!="""" | | ###/####+## %[ =;=]!"" =x /%!%!% | | ! ! /^%%! !g! [!=%=! | | ^ ^ % / %!%%p% % *%%=!* | | "" """ = %% /*===p[ % %![==% | | "" """ * !@= /!=[*%% %%![==! | | "" ^""" # g g/ %%%;= !"" ] !%/=[*% | | "" """ !%] % ; % ""=] ="[*"!"" | | "" """ # *= % ; "" ######## | | # # ;;# ##;####""#####????????? | | # % #### #??#""#????????????? | | ###+####### #???# #??#""#????????????? | | ### #?# #???# #???""#????????????? | | =## """ #?##########???# #???"??????????????? | | ## """ #?????????????? #??????????????????? | | ## """ #????????????? #??????????????????? | | =## #????????????? i #??????????????????? | | =## """ #???????????? #??????????????????? | | ### """ #???????????### #??????????????????? | | "## """ #?????????????#### ??????????????????? | | "## #????????????????? ??????????????????? | | "## #?????????????????% ""?????????????????? | | "## #????????????????? "??????????????????? | | "## #????????????????? "??????????????????? | | "########????????????????? ????????????????????? | | "#???????????????????????????????????????????????? | | "#???????????????????????????????????????????????? | | "#???????????????????????????????????????????????? | | ##???????????????????????????????????????????????? | | ?????????????????????????????????????????????????? | +----------------------------------------------------+ Best States ------------- Heat Dissipation 92 Energy Generation 55 Energy Capacity 700 Matter Stores 300 Matter Capacity 300 Sight Range 16 Terrain Scan Density 10 Jamming Range 12 Base Temperature (-) 100 Armor Coverage 600 Resistance: KI 25 Resistance: TH 25 Power Shielding 66 Propulsion Shielding 33 Phase Shifting 5 Evasion (%) 60 Targeting Accuracy 17 Recoil Reduction 4 Particle Charging 20 Offensive Hacking 30 Authchip Count 16 Item Schematics ----------------- Beam Rifle | -9/Materials | Scanalyzed Hvy. Assault Rifle | -9/Materials | Scanalyzed Beamcaster | -9/Materials | Scanalyzed Helical Railgun | -5/Factory | Scanalyzed Exp. Targeting Computer | -5/Factory | Scanalyzed Robot Schematics ------------------ G-34 Mercenary | -10/Materials | Hacked C-17 Slicer | -8/Materials | Hacked Fabricated ------------ C-17 Slicer | x3 | -7/Factory | Authchip C-17 Slicer | x3 | -7/Factory | Authchip C-17 Slicer | x3 | -7/Factory | Authchip C-17 Slicer | x3 | -7/Factory | Authchip C-17 Slicer | x3 | -7/Factory | Authchip C-17 Slicer | x3 | -7/Factory | Authchip C-17 Slicer | x3 | -7/Factory | Authchip C-17 Slicer | x3 | -7/Factory | Authchip C-17 Slicer | x3 | -7/Factory | Authchip C-17 Slicer | x3 | -7/Factory | Authchip C-17 Slicer | x3 | -7/Factory | Authchip C-17 Slicer | x3 | -7/Factory | Authchip C-17 Slicer | x3 | -7/Factory | Authchip C-17 Slicer | x3 | -7/Factory | Authchip Helical Railgun | x1 | -5/Factory Alien Tech Used ----------------- None Achievements -------------- A Powerful Ally? War Machine We Are Legion Challenges ------------ None Game ------ Seed SupersonicWeightDoublenader Manual? 0 Play Time 05:14:55 Cumulative 55.6 hours Start 2024.09.01 @ 23:16:13 End 2024.09.03 @ 00:57:21 Sessions 3 Manual Loads 0 Difficulty Rogue Special Mode None Game No. 33 Rogue 33 Adventurer 0 Explorer 0 Win Type - Total 0 Types 0/0/0/0/0/0/0/0/0 Lore% 20 Gallery% 42 Achievement% 38 Wizard Run 0 Options --------- Layout 1 ASCII 0 Keyboard 0 Movement Numpad Keybinds 0 Fullscreen 1 Font 24/Smallcaps Map View 50x35 Zoom Use 0% Tactical HUD 1 Map Filters NONE Filters NONE Steam 1 RUN: bbda7a43-ee48-4f1b-ae23-155ed02fc812